fUST/lending_fUST_20250619
["ID","MTS","AMOUNT","RATE_DAILY","PERIOD"]
[366471160,1750275049366,-430.89292246,0.00023746,2]
[366471161,1750275049376,-1000.0,0.000238,2]
[366471162,1750275049385,-667.2785748,0.000238,5]
[366471163,1750275049397,-1880.62,0.000238,7]
[366471164,1750275049406,-723.82929386,0.00023807,2]
[366471165,1750275049416,-161.74851303,0.00023808,2]
[366471166,1750275049426,-606.44206613,0.00023831,10]
[366471167,1750275049436,-460.0,0.00023835,6]
[366471168,1750275049445,-460.0,0.00023835,6]
[366471169,1750275049455,-460.0,0.00023835,6]
[366471170,1750275049465,-460.0,0.00023835,6]
[366471171,1750275049475,-460.0,0.00023835,6]
[366471172,1750275049485,-1327.91,0.00023835,6]
[366471173,1750275049495,-2059.11,0.00023835,6]
[366471174,1750275049504,-558.23,0.00023835,6]
[366471175,1750275049514,-2489.45,0.00023835,6]
[366471176,1750275049524,-2535.43,0.00023835,6]
[366471177,1750275049533,-1287.29,0.00023835,6]
[366471178,1750275049543,-460.0,0.00023835,6]
[366471179,1750275049553,-460.0,0.00023835,6]
[366471180,1750275049564,-1697.43,0.00023835,6]
[366471181,1750275049574,-460.0,0.00023835,6]
[366471182,1750275049585,-1073.53,0.00023835,6]
[366471183,1750275049594,-894.95,0.00023835,6]
[366471184,1750275049604,-803.74,0.00023835,6]
[366471185,1750275049719,-686.29,0.00023835,6]
[366471186,1750275049728,-460.0,0.00023835,6]
[366471187,1750275049738,-460.0,0.00023835,6]
[366471188,1750275049747,-460.0,0.00023835,6]
[366471189,1750275049757,-460.0,0.00023835,6]
[366471190,1750275049766,-460.0,0.00023835,6]
[366471191,1750275049775,-460.0,0.00023835,6]
[366471192,1750275049785,-772.26,0.00023835,6]
[366471193,1750275049794,-460.0,0.00023835,6]
[366471194,1750275049803,-460.0,0.00023835,6]
[366471195,1750275049812,-1528.55,0.00023835,6]
[366471196,1750275049821,-460.0,0.00023835,6]
[366471197,1750275049831,-982.57,0.00023835,6]
[366471198,1750275049839,-563.39586854,0.00023835,6]
[366471199,1750275049849,-671.45,0.00023835,6]
[366471200,1750275049858,-460.0,0.00023835,6]
[366471201,1750275049867,-460.0,0.00023835,6]
[366471202,1750275049876,-460.0,0.00023835,6]
[366471203,1750275049885,-151.0,0.00023835,7]
[366471204,1750275049895,-460.0,0.00023835,6]
[366471205,1750275049905,-507.72,0.00023835,6]
[366471206,1750275049914,-834.86,0.00023835,6]
[366471207,1750275049923,-4405.44,0.00023835,6]
[366471208,1750275049932,-522.16,0.00023835,6]
[366471209,1750275049941,-460.0,0.00023835,6]
[366471210,1750275049950,-1094.82,0.00023835,6]
[366471211,1750275049959,-151.0,0.00023835,7]
[366471212,1750275049968,-460.0,0.00023835,6]
[366471213,1750275049978,-2244.49,0.00023835,6]
[366471214,1750275049988,-460.0,0.00023835,6]
[366471215,1750275049997,-460.0,0.00023835,6]
[366471216,1750275050007,-628.28,0.00023835,6]
[366471217,1750275050019,-460.0,0.00023835,6]
[366471218,1750275050028,-151.0,0.00023835,7]
[366471219,1750275050038,-168.01522086,0.0002384,2]
[366471220,1750275050047,-273.94788519,0.0002384,2]
[366471221,1750275050056,-17850.56488245,0.0002386,2]
[366471222,1750275050066,-162.365828,0.0002386,7]
[366471223,1750275050076,-850780.91014867,0.00023899,4]
[366471224,1750275050214,-1668.20312407,0.00023899,4]
[366471225,1750275050226,-280.44,0.00023899,4]
[366471226,1750275050306,-3601.81966354,0.00023899,4]
[366471227,1750275050317,-969.74033646,0.00023899,4]
[366471228,1750275050640,-460.0,0.00021917,6]
[366471229,1750275050650,-460.0,0.00021917,6]
[366471230,1750275050659,-460.0,0.00021917,6]
[366471231,1750275050668,-460.0,0.00021917,6]
[366471232,1750275050676,-637.52,0.00021917,6]
[366471233,1750275050686,-460.0,0.00022191,6]
[366471234,1750275050695,-460.0,0.00022191,6]
[366471235,1750275050704,-460.0,0.00022191,6]
[366471236,1750275050713,-637.52,0.00022191,6]
[366471237,1750275050722,-49.10814808,0.00022465,6]
[366471238,1750275139286,150.12,0.00018303,2]
[366471239,1750275140377,-202.92814066,0.00019175,2]
[366471241,1750275218699,150.0,0.00018266,2]
[366471242,1750275219733,-200.0,0.00019136,2]
[366471243,1750275297496,201.83,0.00018261,2]
[366471244,1750275376224,1691.10259652,0.000245,120]
[366471245,1750275377905,254.79,0.00018272,2]
[366471246,1750275378182,214.66567055,0.00013699,2]
[366471248,1750275453691,-1000.0,0.00019157,2]
[366471249,1750275457958,251.55,0.0001829,2]
[366471250,1750275493135,159.77149774,0.0001911,2]
[366471251,1750275543240,248.34,0.00018255,2]
[366471252,1750275624419,245.18,0.00018257,2]
[366471253,1750275703585,304.69,0.00018254,2]
[366471254,1750275741379,453.11478686,0.0001911,2]
[366471255,1750275784816,420.77,0.00018252,2]
[366471256,1750275806087,194.67725742,0.00019057,2]
[366471257,1750275859443,4546.88521314,0.0001911,2]
[366471258,1750275864991,500.6,0.00018257,2]
[366471259,1750275947261,511.83,0.00018258,2]
[366471260,1750275994780,232.884222,0.00019349,120]
[366471261,1750276031866,518.51,0.00018263,2]
[366471262,1750276051629,159.9646163,0.00019057,2]
[366471263,1750276112406,543.83,0.00018256,2]
[366471264,1750276116510,3263.88844913,0.00016,2]
[366471266,1750276172143,-1087.66,0.00019125,2]
[366471267,1750276172162,-160.0,0.00019157,2]
[366471268,1750276172181,-5000.0,0.00019157,2]
[366471269,1750276172201,-163.58333334,0.00019175,2]
[366471270,1750276172222,-232.884222,0.00019349,2]
[366471271,1750276172241,-966.864065,0.00019368,2]
[366471272,1750276172438,-666.0,0.00019368,2]
[366471273,1750276172459,-2938.1870257,0.00019368,2]
[366471274,1750276172482,-210.964962,0.00019405,2]
[366471275,1750276172504,-129.19594144,0.00019499,2]
[366471276,1750276174387,760.66504786,0.000189,2]
[366471277,1750276195136,523.06,0.00018237,2]
[366471278,1750276195531,1046.13,0.00019105,2]
[366471284,1750276225559,507.1100319,0.000189,2]
[366471346,1750276232117,-438.6009186,0.0001913,2]
[366471348,1750276232128,-253.00946808,0.00019395,2]
[366471349,1750276232139,-151.0,0.00019499,2]
[366471351,1750276232148,-160.47140235,0.000195,2]
[366471353,1750276232158,-1569.19,0.00019974,2]
[366471355,1750276232167,-160.0,0.00019999,2]
[366471357,1750276232177,-182.1979162,0.00020053,2]
[366471359,1750276232186,-159.96461629,0.00020148,2]
[366471361,1750276232196,-682.4644118,0.00020148,2]
[366471363,1750276232206,-160.47140234,0.00020148,2]
[366471365,1750276232216,-532.20466902,0.00020246,2]
[366471367,1750276232225,-300.0,0.00020246,2]
[366471368,1750276232235,-300.0,0.00020246,2]
[366471369,1750276232244,-300.0,0.00020246,2]
[366471370,1750276232254,-1200.0,0.00020246,2]
[366471372,1750276232264,-50000.0,0.00020246,2]
[366471373,1750276232274,-500.0,0.00020247,2]
[366471374,1750276232283,-500.0,0.00020247,2]
[366471376,1750276232293,-500.0,0.00020247,2]
[366471378,1750276232302,-500.0,0.00020247,2]
[366471380,1750276232312,-500.0,0.00020247,2]
[366471381,1750276232321,-500.0,0.00020247,2]
[366471383,1750276232331,-500.0,0.00020247,2]
[366471385,1750276232340,-500.0,0.00020247,2]
[366471386,1750276232350,-500.0,0.00020247,2]
[366471387,1750276232359,-500.0,0.00020247,2]
[366471389,1750276232370,-500.0,0.00020247,2]
[366471391,1750276232379,-500.0,0.00020247,2]
[366471392,1750276232388,-500.0,0.00020247,2]
[366471393,1750276232397,-500.0,0.00020247,2]
[366471394,1750276232407,-500.0,0.00020247,2]
[366471396,1750276232419,-500.0,0.00020247,2]
[366471398,1750276232428,-500.0,0.00020247,2]
[366471399,1750276232437,-500.0,0.00020247,2]
[366471400,1750276232447,-500.0,0.00020247,2]
[366471401,1750276232458,-500.0,0.00020247,2]
[366471403,1750276232467,-500.0,0.00020247,2]
[366471404,1750276232476,-500.0,0.00020247,2]
[366471406,1750276232487,-500.0,0.00020247,2]
[366471408,1750276232497,-500.0,0.00020247,2]
[366471410,1750276232506,-500.0,0.00020247,2]
[366471412,1750276232515,-500.0,0.00020247,2]
[366471413,1750276232524,-500.0,0.00020247,2]
[366471414,1750276232533,-500.0,0.00020247,2]
[366471415,1750276232543,-500.0,0.00020247,2]
[366471416,1750276232552,-500.0,0.00020247,2]
[366471417,1750276232561,-500.0,0.00020247,2]
[366471418,1750276232570,-500.0,0.00020247,2]
[366471419,1750276232579,-500.0,0.00020247,2]
[366471420,1750276232589,-500.0,0.00020247,2]
[366471422,1750276232598,-500.0,0.00020247,2]
[366471423,1750276232607,-500.0,0.00020247,2]
[366471424,1750276232617,-500.0,0.00020247,2]
[366471425,1750276232627,-500.0,0.00020247,2]
[366471426,1750276232636,-500.0,0.00020247,2]
[366471427,1750276232649,-500.0,0.00020247,2]
[366471428,1750276232658,-500.0,0.00020247,2]
[366471429,1750276232668,-500.0,0.00020247,2]
[366471430,1750276232677,-500.0,0.00020247,2]
[366471431,1750276232686,-500.0,0.00020247,2]
[366471432,1750276232695,-500.0,0.00020247,2]
[366471433,1750276232705,-500.0,0.00020247,2]
[366471434,1750276232715,-500.0,0.00020247,2]
[366471435,1750276232724,-500.0,0.00020247,2]
[366471436,1750276232733,-500.0,0.00020247,2]
[366471437,1750276232743,-500.0,0.00020247,2]
[366471438,1750276232752,-500.0,0.00020247,2]
[366471439,1750276232761,-500.0,0.00020247,2]
[366471440,1750276232771,-500.0,0.00020247,2]
[366471441,1750276232780,-500.0,0.00020247,2]
[366471442,1750276232790,-500.0,0.00020247,2]
[366471443,1750276232799,-500.0,0.00020247,2]
[366471444,1750276232810,-500.0,0.00020247,2]
[366471445,1750276232819,-500.0,0.00020247,2]
[366471446,1750276232829,-313.99409384,0.00020247,2]
[366471447,1750276232838,-500.0,0.00020247,2]
[366471448,1750276232847,-500.0,0.00020247,2]
[366471449,1750276232856,-500.0,0.00020247,2]
[366471450,1750276232866,-500.0,0.00020247,2]
[366471451,1750276232876,-500.0,0.00020247,2]
[366471452,1750276232886,-500.0,0.00020247,2]
[366471453,1750276232895,-500.0,0.00020247,2]
[366471454,1750276232904,-500.0,0.00020247,2]
[366471455,1750276232914,-500.0,0.00020247,2]
[366471456,1750276232923,-300.0,0.00020248,2]
[366471457,1750276232932,-281.286616,0.00020249,2]
[366471458,1750276232942,-189.24898671,0.00020264,2]
[366471459,1750276232951,-342.0421259,0.00020311,2]
[366471460,1750276232960,-500.0,0.00020521,2]
[366471461,1750276232970,-500.0,0.00020547,2]
[366471462,1750276232979,-175.29521816,0.0002075,2]
[366471463,1750276232988,-193.324955,0.0002076,2]
[366471464,1750276232998,-625.25947612,0.00020773,2]
[366471465,1750276233007,-471.11250847,0.00020773,2]
[366471466,1750276233017,-500.0,0.00020773,2]
[366471467,1750276233027,-425.5250504,0.00020773,2]
[366471468,1750276233037,-563.39415415,0.00020791,2]
[366471469,1750276233047,-239.27830092,0.00020795,2]
[366471470,1750276233263,-663.19,0.000208,2]
[366471471,1750276233274,-2092.25,0.00020842,2]
[366471472,1750276233283,-682.46441178,0.00020858,2]
[366471473,1750276233293,-1164.62054145,0.000209,4]
[366471474,1750276233303,-250.0,0.00021007,2]
[366471475,1750276233313,-1164.62054144,0.00021072,4]
[366471476,1750276233322,-500.0,0.00021095,3]
[366471477,1750276233332,-1164.62054144,0.00021245,4]
[366471478,1750276233342,-1000.0,0.00021321,2]
[366471479,1750276233352,-168.0,0.00021368,2]
[366471480,1750276233362,-160.0,0.00021369,2]
[366471481,1750276233373,-1164.62054144,0.00021417,5]
[366471482,1750276233385,-300.0,0.00021465,2]
[366471483,1750276233395,-168.0,0.00021502,2]
[366471484,1750276233406,-682.46441178,0.00021568,2]
[366471485,1750276233418,-1164.62054144,0.0002159,5]
[366471486,1750276233427,-346.36,0.00021599,10]
[366471487,1750276233437,-9779.30632801,0.00021609,2]
[366471488,1750276233451,-15220.69367199,0.00021609,2]
[366471489,1750276233462,-5000.0,0.00021609,2]
[366471490,1750276233472,-17868.64831762,0.00021609,2]
[366471491,1750276233483,-1688.00000001,0.00021609,2]
[366471492,1750276233494,-3658.82932813,0.00021609,2]
[366471493,1750276233504,-500.0,0.00021609,2]
[366471494,1750276233514,-500.0,0.00021609,2]
[366471495,1750276233523,-207.4,0.00021609,2]
[366471496,1750276233533,-500.0,0.00021609,2]
[366471497,1750276233543,-500.0,0.00021609,2]
[366471498,1750276233552,-500.0,0.00021609,2]
[366471499,1750276233563,-500.0,0.00021609,2]
[366471500,1750276233572,-500.0,0.00021609,2]
[366471501,1750276233582,-500.0,0.00021609,2]
[366471502,1750276233592,-500.0,0.00021609,2]
[366471503,1750276233601,-500.0,0.00021609,2]
[366471504,1750276233611,-500.0,0.00021609,2]
[366471505,1750276233623,-500.0,0.00021609,2]
[366471506,1750276233633,-500.0,0.00021609,2]
[366471507,1750276233644,-500.0,0.00021609,2]
[366471508,1750276233654,-500.0,0.00021609,2]
[366471509,1750276233664,-500.0,0.00021609,2]
[366471510,1750276233673,-500.0,0.00021609,2]
[366471511,1750276233683,-500.0,0.00021609,2]
[366471512,1750276233693,-500.0,0.00021609,2]
[366471513,1750276233702,-500.0,0.00021609,2]
[366471514,1750276233712,-500.0,0.00021609,2]
[366471515,1750276233721,-500.0,0.00021609,2]
[366471516,1750276233731,-500.0,0.00021609,2]
[366471517,1750276233740,-500.0,0.00021609,2]
[366471518,1750276233750,-500.0,0.00021609,2]
[366471519,1750276233759,-500.0,0.00021609,2]
[366471520,1750276233769,-500.0,0.00021609,2]
[366471521,1750276233778,-500.0,0.00021609,2]
[366471522,1750276233787,-500.0,0.00021609,2]
[366471523,1750276233796,-500.0,0.00021609,2]
[366471524,1750276233806,-168.0,0.00021704,2]
[366471525,1750276233816,-2615.32,0.00021711,2]
[366471526,1750276233826,-244.79,0.0002173,3]
[366471527,1750276233836,-734.4,0.0002173,3]
[366471528,1750276233845,-160.13,0.0002173,3]
[366471529,1750276233854,-320.26,0.0002173,3]
[366471530,1750276233863,-160.13,0.0002173,3]
[366471531,1750276233875,-480.44,0.0002173,3]
[366471532,1750276233885,-225.563,0.00021752,2]
[366471533,1750276233894,-1164.62054144,0.00021762,5]
[366471534,1750276233904,-160.0,0.00021799,2]
[366471535,1750276233913,-19835.10127078,0.00021817,3]
[366471536,1750276233923,-213.43818883,0.00021817,3]
[366471537,1750276233932,-160.0,0.00021817,3]
[366471538,1750276233941,-8482.1812341,0.00021817,2]
[366471539,1750276233950,-160.0,0.00021824,2]
[366471540,1750276233959,-835.98428123,0.00021824,2]
[366471541,1750276233969,-12542.39314967,0.00021824,2]
[366471542,1750276233979,-424.70586748,0.00021824,2]
[366471543,1750276233989,-229.98435572,0.00021824,2]
[366471544,1750276233998,-160.0,0.00021824,2]
[366471545,1750276234007,-160.0,0.00021824,2]
[366471546,1750276234016,-160.0,0.00021834,2]
[366471547,1750276234027,-160.0,0.00021834,2]
[366471548,1750276234036,-213.43818883,0.00021834,2]
[366471549,1750276234046,-845.78193577,0.00021834,2]
[366471550,1750276234055,-160.0,0.00021834,2]
[366471551,1750276234065,-160.0,0.00021834,2]
[366471552,1750276234075,-160.0,0.00021834,2]
[366471553,1750276234084,-292.34,0.00021842,3]
[366471554,1750276234093,-1000.0,0.00021868,2]
[366471555,1750276234103,-224.18,0.00021907,3]
[366471556,1750276234112,-620.97,0.00021907,3]
[366471557,1750276234122,-310.49,0.00021907,3]
[366471558,1750276234132,-155.24,0.00021907,3]
[366471559,1750276234142,-465.75,0.00021907,3]
[366471560,1750276234152,-236.29,0.00021907,3]
[366471561,1750276234162,-708.88,0.00021907,3]
[366471562,1750276234172,-440.0,0.00021917,6]
[366471563,1750276234181,-460.0,0.00021917,6]
[366471564,1750276234191,-460.0,0.00021917,6]
[366471565,1750276234202,-460.0,0.00021917,6]
[366471566,1750276234211,-460.0,0.00021917,6]
[366471567,1750276234221,-460.0,0.00021917,6]
[366471568,1750276234230,-460.0,0.00021917,6]
[366471569,1750276234240,-460.0,0.00021917,6]
[366471570,1750276234249,-460.0,0.00021917,6]
[366471571,1750276234259,-460.0,0.00021917,6]
[366471572,1750276234268,-387.5603561,0.00021917,6]
[366471573,1750276234278,-460.0,0.00021917,6]
[366471574,1750276234288,-460.0,0.00021917,6]
[366471575,1750276234298,-460.0,0.00021917,6]
[366471576,1750276234308,-586.58442317,0.00021917,6]
[366471577,1750276234319,-460.0,0.00021917,2]
[366471578,1750276234331,-460.0,0.00021917,6]
[366471579,1750276234341,-460.0,0.00021917,6]
[366471580,1750276234351,-460.0,0.00021917,6]
[366471581,1750276234361,-303.91061213,0.00021917,6]
[366471582,1750276234371,-300.46151265,0.00021917,6]
[366471583,1750276234382,-460.0,0.00021917,6]
[366471584,1750276234392,-427.79140019,0.00021917,6]
[366471585,1750276234402,-460.0,0.00021917,6]
[366471586,1750276234415,-460.0,0.00021917,6]
[366471587,1750276234425,-460.0,0.00021917,6]
[366471588,1750276234435,-460.0,0.00021917,6]
[366471589,1750276234447,-460.0,0.00021917,6]
[366471590,1750276234458,-460.0,0.00021917,6]
[366471591,1750276234468,-575.51440866,0.00021917,6]
[366471592,1750276234478,-460.0,0.00021917,6]
[366471593,1750276234488,-460.0,0.00021917,6]
[366471594,1750276234498,-220.34110096,0.00021917,6]
[366471595,1750276234509,-460.0,0.00021917,6]
[366471596,1750276234519,-440.0,0.00021917,6]
[366471597,1750276234529,-460.0,0.00021917,6]
[366471598,1750276234538,-440.0,0.00021917,6]
[366471599,1750276234547,-460.0,0.00021917,2]
[366471600,1750276234557,-427.44700746,0.00021917,6]
[366471601,1750276234566,-460.0,0.00021917,6]
[366471602,1750276234576,-350.0,0.00021917,6]
[366471603,1750276234585,-459.84832364,0.00021917,6]
[366471604,1750276234595,-460.0,0.00021917,6]
[366471605,1750276234606,-460.0,0.00021917,6]
[366471606,1750276234619,-460.0,0.00021917,6]
[366471607,1750276234631,-460.0,0.00021917,6]
[366471608,1750276234641,-460.0,0.00021917,6]
[366471609,1750276234650,-355.73418528,0.00021917,6]
[366471610,1750276234660,-440.44955845,0.00021917,6]
[366471611,1750276234671,-430.0,0.00021917,6]
[366471612,1750276234681,-460.0,0.00021917,6]
[366471613,1750276234690,-460.0,0.00021917,6]
[366471614,1750276234700,-460.0,0.00021917,6]
[366471615,1750276234710,-460.0,0.00021917,6]
[366471616,1750276234720,-550.50456212,0.00021917,6]
[366471617,1750276234729,-460.0,0.00021917,6]
[366471618,1750276234738,-460.0,0.00021917,6]
[366471619,1750276234751,-500.0,0.00021917,6]
[366471620,1750276234760,-460.0,0.00021917,6]
[366471621,1750276234770,-460.0,0.00021917,6]
[366471622,1750276234780,-430.0,0.00021917,6]
[366471623,1750276234789,-460.0,0.00021917,6]
[366471624,1750276234799,-460.0,0.00021917,6]
[366471625,1750276234808,-380.0,0.00021917,6]
[366471626,1750276234818,-460.0,0.00021917,6]
[366471627,1750276234827,-460.0,0.00021917,6]
[366471628,1750276234837,-460.0,0.00021917,6]
[366471629,1750276234846,-460.0,0.00021917,6]
[366471630,1750276234855,-460.0,0.00021917,6]
[366471631,1750276234864,-460.0,0.00021917,6]
[366471632,1750276234874,-420.0,0.00021917,6]
[366471633,1750276234884,-460.0,0.00021917,6]
[366471634,1750276234893,-460.0,0.00021917,6]
[366471635,1750276234903,-460.0,0.00021917,6]
[366471636,1750276234912,-546.26,0.00021917,6]
[366471637,1750276234922,-460.0,0.00021917,6]
[366471638,1750276234931,-460.0,0.00021917,6]
[366471639,1750276234941,-440.0,0.00021917,6]
[366471640,1750276234950,-171.4259263,0.00021917,6]
[366471641,1750276234960,-460.0,0.00021917,6]
[366471642,1750276234970,-460.0,0.00021917,6]
[366471643,1750276234980,-460.0,0.00021917,6]
[366471644,1750276234990,-460.0,0.00021917,6]
[366471645,1750276235000,-460.0,0.00021917,6]
[366471646,1750276235010,-468.05,0.00021917,6]
[366471647,1750276235019,-460.0,0.00021917,6]
[366471648,1750276235028,-460.0,0.00021917,6]
[366471649,1750276235038,-460.0,0.00021917,6]
[366471650,1750276235048,-460.0,0.00021917,6]
[366471651,1750276235058,-460.0,0.00021917,6]
[366471652,1750276235067,-460.0,0.00021917,6]
[366471653,1750276235077,-460.0,0.00021917,6]
[366471654,1750276235087,-460.0,0.00021917,6]
[366471655,1750276235097,-564.7883965,0.00021917,6]
[366471656,1750276235106,-460.0,0.00021917,6]
[366471657,1750276235116,-460.0,0.00021917,6]
[366471658,1750276235126,-460.0,0.00021917,6]
[366471659,1750276235137,-420.0,0.00021917,6]
[366471660,1750276235146,-460.0,0.00021917,6]
[366471661,1750276235155,-450.0,0.00021917,6]
[366471662,1750276235166,-460.0,0.00021917,6]
[366471663,1750276235176,-443.79035073,0.00021917,6]
[366471664,1750276235185,-440.0,0.00021917,6]
[366471665,1750276235195,-450.0,0.00021917,6]
[366471666,1750276235204,-288.60950469,0.00021917,6]
[366471667,1750276235214,-460.0,0.00021917,6]
[366471668,1750276235223,-460.0,0.00021917,6]
[366471669,1750276235233,-460.0,0.00021917,6]
[366471670,1750276235243,-460.0,0.00021917,6]
[366471671,1750276235252,-500.0,0.00021917,6]
[366471672,1750276235262,-500.0,0.00021917,6]
[366471673,1750276235273,-500.0,0.00021917,6]
[366471674,1750276235283,-500.0,0.00021917,6]
[366471675,1750276235292,-460.0,0.00021917,6]
[366471676,1750276235302,-500.0,0.00021917,6]
[366471677,1750276235312,-500.0,0.00021917,6]
[366471678,1750276235322,-531.82908056,0.00021917,6]
[366471679,1750276235332,-460.0,0.00021917,6]
[366471680,1750276235342,-460.0,0.00021917,6]
[366471681,1750276235351,-460.0,0.00021917,6]
[366471682,1750276235361,-460.0,0.00021917,6]
[366471683,1750276235371,-460.0,0.00021917,6]
[366471684,1750276235382,-460.0,0.00021917,6]
[366471685,1750276235391,-460.0,0.00021917,6]
[366471686,1750276235401,-434.04241686,0.00021917,6]
[366471687,1750276235414,-460.0,0.00021917,6]
[366471688,1750276235424,-410.39311907,0.00021917,6]
[366471689,1750276235434,-460.0,0.00021917,6]
[366471690,1750276235444,-460.0,0.00021917,6]
[366471691,1750276235453,-460.0,0.00021917,6]
[366471692,1750276235463,-460.0,0.00021917,6]
[366471693,1750276235474,-413.63587754,0.00021917,6]
[366471694,1750276235483,-460.0,0.00021917,6]
[366471695,1750276235493,-460.0,0.00021917,6]
[366471696,1750276235502,-460.0,0.00021917,6]
[366471697,1750276235512,-460.0,0.00021917,6]
[366471698,1750276235521,-460.0,0.00021917,6]
[366471699,1750276235530,-460.0,0.00021917,6]
[366471700,1750276235540,-460.0,0.00021917,6]
[366471701,1750276235549,-460.0,0.00021917,6]
[366471702,1750276235559,-460.0,0.00021917,6]
[366471703,1750276235568,-460.0,0.00021917,6]
[366471704,1750276235578,-460.0,0.00021917,6]
[366471705,1750276235587,-408.97579404,0.00021917,6]
[366471706,1750276235597,-424.17830359,0.00021917,6]
[366471707,1750276235606,-460.0,0.00021917,6]
[366471708,1750276235616,-500.0,0.00021917,6]
[366471709,1750276235627,-460.0,0.00021917,6]
[366471710,1750276235637,-370.0,0.00021917,6]
[366471711,1750276235646,-424.80772961,0.00021917,6]
[366471712,1750276235655,-437.32751825,0.00021917,6]
[366471713,1750276235665,-460.0,0.00021917,6]
[366471714,1750276235674,-433.71951333,0.00021917,6]
[366471715,1750276235684,-2680.33,0.00021917,6]
[366471716,1750276235693,-401.28383449,0.00021917,6]
[366471717,1750276235703,-460.0,0.00021917,6]
[366471718,1750276235716,-460.0,0.00021917,6]
[366471719,1750276235726,-460.0,0.00021917,6]
[366471720,1750276235736,-462.67557785,0.00021917,6]
[366471721,1750276235745,-460.0,0.00021917,6]
[366471722,1750276235755,-460.0,0.00021917,6]
[366471723,1750276235765,-322.23645298,0.00021917,6]
[366471724,1750276235774,-460.0,0.00021917,6]
[366471725,1750276235783,-430.0,0.00021917,6]
[366471726,1750276235793,-341.53684376,0.00021917,6]
[366471741,1750276237745,-500.0,0.00020245,2]
[366471742,1750276237755,-500.0,0.00020245,2]
[366471743,1750276237765,-160.46240121,0.00020245,2]
[366471744,1750276237774,-500.0,0.00020245,2]
[366471745,1750276237784,-500.0,0.00020245,2]
[366471746,1750276237794,-500.0,0.00020245,2]
[366471747,1750276237803,-186.67474246,0.00020245,2]
[366471748,1750276237812,-500.0,0.00020245,2]
[366471749,1750276237822,-500.0,0.00020245,2]
[366471750,1750276237831,-500.0,0.00020245,2]
[366471751,1750276237841,-500.0,0.00020245,2]
[366471752,1750276237851,-222.26498963,0.00020245,2]
[366471753,1750276237860,-361.64909145,0.00020245,2]
[366471754,1750276237870,-500.0,0.00020245,2]
[366471755,1750276237880,-504.59790517,0.00020245,2]
[366471756,1750276237890,-550.02095332,0.00020245,2]
[366471757,1750276237900,-500.0,0.00020245,2]
[366471758,1750276237909,-500.0,0.00020245,2]
[366471759,1750276237919,-500.0,0.00020245,2]
[366471760,1750276237928,-500.0,0.00020245,2]
[366471761,1750276237937,-295.38150556,0.00020245,2]
[366471762,1750276237947,-500.0,0.00020245,2]
[366471763,1750276237957,-500.0,0.00020245,2]
[366471764,1750276237966,-631.9053845,0.00020245,2]
[366471765,1750276237976,-500.0,0.00020245,2]
[366471766,1750276237986,-500.0,0.00020245,2]
[366471767,1750276237995,-500.0,0.00020245,2]
[366471768,1750276238005,-500.0,0.00020245,2]